[Event "1000GM 0004 IM Norm 2022"]
[Site "Saint Louis"]
[Date "2022.09.22"]
[Round "2.1"]
[White "Denby, Caleb"]
[Black "Cervantes Landeiro, Thalia"]
[Result "0-1"]
[ECO "D89"]
[WhiteElo "2201"]
[BlackElo "2280"]
[Annotator "TA"]
[PlyCount "106"]
[EventDate "2022.09.21"]
[EventType "tourn"]
[EventCountry "USA"]
[SourceTitle "playchess.com"]
[Source "ChessBase"]
[SourceQuality "1"]
[TimeControl "5400+30"]

{[%evp 30,106,0,0,0,0,23,30,21,27,25,0,43,47,38,22,27,-12,8,-24,0,0,6,-67,-68,-88,-79,-83,-81,-89,-88,-174,-145,-174,-179,-173,-110,-150,-152,-263,-260,-235,-269,-313,-306,-390,-182,-222,-227,-340,-293,-259,-272,-318,-283,-368,-143,-465,-491,-439,-450,-434,-335,-723,-703,-678,-678,-1045,-1012,-1927,-1923,-1916,-1902,-1744,-1538,-5533,-5114,-29977,-29976]} 1. d4 {[%emt 0:11:07]} Nf6 {[%emt 0:00:08]} 2. c4 {[%emt 0:00:05]} g6 {[%emt 0:00:07]} 3. Nc3 {[%emt 0:00:04]} d5 {[%emt 0:00:10]} 4. cxd5 {[%emt 0:00:05]} Nxd5 {[%emt 0:00:07]} 5. e4 {[%emt 0:00:03]} Nxc3 {[%emt 0:00:10]} 6. bxc3 {[%emt 0:00:04]} Bg7 {[%emt 0:00:07]} 7. Bc4 {[%emt 0:00:05]} c5 {[%emt 0:00:23]} 8. Ne2 {[%emt 0:00:12]} O-O {[%emt 0:00:44]} 9. O-O {[%emt 0:00:19]} Nc6 {[%emt 0:00:15]} 10. Be3 {[%emt 0:00:04]} Bg4 {[%emt 0:00:45]} 11. f3 {[%emt 0:00:06]} Na5 {[%emt 0:00:35]} 12. Bd3 {[%emt 0:00:17]} cxd4 {[%emt 0:00:31]} 13. cxd4 {[%emt 0:00:05][%cal Bc3d4,Bd4d5][%mdl 32]} Be6 {[%emt 0:00:15]} 14. d5 {[%emt 0:01:26]} Bxa1 {[%emt 0:01:13]} 15. Qxa1 {[%emt 0:00:07]} f6 {[%emt 0:00:40]} 16. Qb1 {[%emt 0:00:21]} Bf7 {[%emt 0:02:59] D89: Exchange Grünfeld: Classical Line: 10 Be3 cxd4 11 cxd4 Bg4 12 f3 Na5 13 Bd3.} 17. Nd4 {[%emt 0:00:40] Inhibits e6.} Rc8 {[%emt 0:15:48]} 18. Qb4 {[%emt 0:00:12][%mdl 1024] White has compensation.} b6 {[%emt 0:08:38][%cal Oe7e6] White has an edge.} 19. Ba6 {[%emt 0:06:25]} Rc7 {[%emt 0:11:39] [#]} 20. Rd1 $146 {[%emt 0:00:17]} ({Predecessor:} 20. Bh6 Qd7 21. Bb5 Qd8 22. Bc6 Re8 23. Bxe8 Qxe8 24. Rc1 Rxc1+ 25. Bxc1 Qd7 26. Ba3 {1-0 (35) Mareco,S (2481)-Pierrot,J (2420) Buenos Aires 2008}) 20... Nb7 {[%emt 0:11:45]} 21. Bf4 {[%emt 0:13:17] A strong pair of Bishops.} Nc5 $1 {[%emt 0:03:47]} 22. Bc4 {[%emt 0:12:32]} Rc8 {[%emt 0:04:17]} 23. Rd2 {[%emt 0:00:49]} a5 {[%emt 0:06:23]} 24. Qb5 {[%emt 0:03:06] And now Nc6 would win.} Nb7 {[%emt 0:03:54] ...Nd6 is the strong threat.} (24... Be8 $5 {[%cal Re8b5]} 25. Nc6 Kg7 $11) 25. Bf1 {[%emt 0:18:19] With the idea Nc6.} Nd6 {[%emt 0:03:13]} 26. Qe2 {[%emt 0:00:12]} (26. Qa6 $11) 26... Nc4 $15 {[%emt 0:03:41]} 27. Rd1 {[%emt 0:01:24]} Qd7 {[%emt 0:08:29]} 28. Bh6 {[%emt 0:12:20]} Rfe8 {[%emt 0:02:57]} 29. Qe1 {[%emt 0:02:10]} b5 {[%emt 0:03:19]} 30. a4 {[%emt 0:00:33]} (30. Bxc4 $17 {might work better.} bxc4 31. Qc3) 30... bxa4 {[%emt 0:01:53]} 31. Qc3 {[%emt 0:02:35]} Ne5 {[%emt 0:01:21]} 32. Qa1 {[%emt 0:00:25] [#]} Red8 {[%emt 0:01:59]} (32... Rb8 $1 $19 33. Bf4 Rb6) 33. Bb5 {[%emt 0:02:58]} Qd6 {[%emt 0:00:07]} ({And not} 33... Qa7 34. Be3 $17) 34. h3 {[%emt 0:00:05]} (34. Bxa4 $17 {was necessary.} e6 35. dxe6 Bxe6 36. Nxe6 Qxe6 37. Rxd8+ Rxd8 38. Qb2) 34... Be8 {[%emt 0:02:00]} 35. Bxe8 {[%emt 0:03:25]} Rxe8 {[%emt 0:00:01]} 36. Kh1 {[%emt 0:00:05]} a3 {[%emt 0:01:04]} 37. Qa2 {[%emt 0:00:23]} Nf7 {[%emt 0:00:31]} (37... Qb4 $142 38. d6+ e6) 38. Be3 {[%emt 0:00:11]} Qb4 {[%emt 0:00:50] aiming for ...Rc3.} 39. Rb1 {[%emt 0:01:11]} (39. Nc6 $142 Qb2 40. Rd2 Qxa2 41. Rxa2) 39... Qc3 $19 {[%emt 0:00:15]} 40. Rb3 {[%emt 0:00:22]} Qe1+ {[%emt 0:00:46]} 41. Kh2 {[%emt 0:00:04] [#]} Rb8 $1 {[%emt 0:00:34] Hoping for ...Rxb3.} 42. Bf2 {[%emt 0:02:48]} Qc1 $2 {[%emt 0:00:24]} (42... Qf1 $19 {is more deadly.} 43. Rxa3 Rb1) 43. Be3 $2 {[%emt 0:03:00][%mdl 8192] Loses the game.} (43. Qxa3 $17 {nothing else works.} Qxa3 44. Rxa3) 43... Qc7+ {[%emt 0:00:34]} 44. f4 {[%emt 0:00:13]} Rxb3 {[%emt 0:00:20]} 45. Qxb3 {[%emt 0:00:03]} Qd6 {[%emt 0:01:18]} 46. Nc6 {[%emt 0:00:09] Prevents Rb8.} (46. Qa4 Rc8 47. Nc6) 46... e6 {[%emt 0:00:43] Strongly threatening ...exd5.} 47. Nxa5 {[%emt 0:06:01]} exd5 {[%emt 0:00:17]} 48. exd5 {[%emt 0:00:05]} a2 {[%emt 0:00:19]} 49. Nc4 {[%emt 0:00:22]} Qa6 {[%emt 0:01:12]} 50. Bd4 {[%emt 0:02:00]} a1=Q {[%emt 0:00:08]} 51. Bxa1 {[%emt 0:00:03]} Qxa1 {[%emt 0:00:08]} 52. d6 {[%emt 0:00:15]} Qd4 {[%emt 0:00:23] ( -> ...Re1)} 53. Kg3 {[%emt 0:00:04]} Kg7 {[%emt 0:00:33] Weighted Error Value: White=0.84/Black=0.24 (precise)} 0-1

[Event "1000GM 0004 IM Norm 2022"]
[Site "Saint Louis"]
[Date "2022.09.22"]
[Round "2.2"]
[White "Tsolakidou, Stavroula"]
[Black "Krishnan, Varun"]
[Result "0-1"]
[ECO "B52"]
[WhiteElo "2400"]
[BlackElo "2306"]
[Annotator "TA"]
[PlyCount "194"]
[EventDate "2022.09.21"]
[EventType "tourn"]
[EventCountry "USA"]
[SourceTitle "playchess.com"]
[Source "ChessBase"]
[SourceQuality "1"]
[TimeControl "5400+30"]

{[%evp 16,194,16,9,6,0,0,0,0,0,0,0,0,0,0,0,16,0,0,0,0,-23,-28,-28,-24,-45,-41,-38,-41,-51,-50,-37,-41,-47,-53,-67,-75,-85,-87,-183,-204,-180,-123,-122,-100,-100,-98,-123,-129,-192,-177,-220,-217,-256,-161,-147,-141,-162,-156,-168,-164,-175,-185,-187,-164,-183,-166,-204,-155,-253,-250,-241,-241,-246,-241,-248,-245,-225,-222,-235,-170,-167,-150,-163,-167,-166,-159,-162,-108,-114,-104,-108,0,-122,-112,-116,-113,-106,-14,-31,-14,-172,0,0,0,-148,-164,-181,-188,-249,-248,-242,-240,-388,-387,-388,-388,-387,-387,-387,-380,-281,-281,-3865,-3185,-2430,-2016,-4152,-4152,-4152,-4152,-4152,-4143,-4076,-4064,-3984,-3287,-2625,-2425,-1733,-787,-885,-830,-757,-638,-544,-492,-417,-381,-359,-352,-342,0,-796,0,-627,-336,-301,-271,-3287,-2449,-1543,-1385,-1108,-568,-1029,-536,-1444,-1007,-4152,-4152,-4152,-4145,-4145,-4145,-4145,-4145,-4145,-4145,-4145,-4145]} 1. e4 {[%emt 0:00:15]} c5 {[%emt 0:00:04]} 2. Nf3 {[%emt 0:00:08]} d6 {[%emt 0:00:07]} 3. Bb5+ {[%emt 0:01:22]} Bd7 {[%emt 0:00:06]} 4. Bxd7+ {[%emt 0:00:35]} Qxd7 {[%emt 0:00:05]} 5. O-O {[%emt 0:00:24]} Nc6 {[%emt 0:00:37]} 6. c3 {[%emt 0:01:05]} d5 {[%emt 0:00:05]} 7. exd5 {[%emt 0:14:59]} Qxd5 {[%emt 0:00:30]} 8. d4 {[%emt 0:00:07]} e6 {[%emt 0:02:19]} 9. Be3 {[%emt 0:00:45]} cxd4 {[%emt 0:00:46] B52: Sicilian: Moscow Variation with 3...Bd7.} 10. cxd4 {[%emt 0:02:31]} Nf6 {[%emt 0:00:13]} 11. Nc3 {[%emt 0:00:28]} Qa5 {[%emt 0:00:44] The position is equal.} 12. Ne5 {[%emt 0:05:06]} Be7 {[%emt 0:08:56]} 13. Nxc6 {[%emt 0:03:55]} bxc6 {[%emt 0:00:07]} 14. Rc1 {[%emt 0:00:11]} O-O {[%emt 0:03:38]} 15. Qa4 {[%emt 0:00:22]} Qc7 {[%emt 0:05:40]} 16. Ne2 {[%emt 0:01:57] [#]} Rfc8 $146 {[%emt 0:03:28]} ({Predecessor:} 16... Rac8 17. Rc2 Nd5 18. Rfc1 Nxe3 19. fxe3 Bg5 20. Rc3 a5 21. g3 Rfd8 22. Kf2 Rd6 {0-1 (37) Kopp,P-Roeschlau,B (2315) Hessen 1991}) 17. h3 {[%emt 0:04:52]} Nd5 {[%emt 0:04:16]} 18. Bd2 {[%emt 0:01:54]} Qb7 {[%emt 0:04:22]} 19. Qc2 {[%emt 0:16:21]} Qa6 {[%emt 0:06:27]} 20. Ng3 {[%emt 0:07:49]} Bf6 {[%emt 0:04:30]} (20... Qxa2 $2 21. Ra1 Ne3 22. fxe3 $18 (22. Rxa2 Nxc2 23. Ra4 Rd8 $15)) 21. Qc4 {[%emt 0:11:16]} Qb6 {[%emt 0:04:26][%csl LRb2,LRd4]} 22. Bc3 {[%emt 0:00:38]} Qb5 {[%emt 0:13:24]} 23. Qxb5 {[%emt 0:00:21]} cxb5 {[%emt 0:00:02][%cal Bc6b5,Bb5b4][%mdl 32]} 24. Ne4 {[%emt 0:00:06]} Nf4 {[%emt 0:04:00] ...Ne2+ is the strong threat.} 25. Rce1 {[%emt 0:03:28] Inhibits Ne2+.} Be7 {[%emt 0:01:47] Black is more active.} 26. g3 {[%emt 0:03:41]} Nd5 {[%emt 0:02:03]} 27. f4 {[%emt 0:07:45]} (27. Rc1 $17 {was worth a try.}) 27... b4 $19 {[%emt 0:02:38]} 28. Bd2 {[%emt 0:00:06]} Rc4 {[%emt 0:04:23]} (28... Rc2 $19 {Threatens to win with ...f5.} 29. Rf2 Rxb2) 29. f5 $17 {[%emt 0:02:05]} Rxd4 {[%emt 0:03:43]} 30. fxe6 {[%emt 0:00:09]} fxe6 {[%emt 0:00:09]} 31. Bc1 {[%emt 0:01:00]} Rc8 {[%emt 0:02:50]} 32. Nd2 {[%emt 0:03:07]} (32. Nf2 $17) 32... Rd3 {[%emt 0:02:09]} 33. Nf3 {[%emt 0:01:36]} Rc2 {[%emt 0:06:05]} 34. Rxe6 {[%emt 0:03:34]} Rxf3 {[%emt 0:02:21]} 35. Rxf3 {[%emt 0:00:10][%cal Oc1g5]} Rxc1+ {[%emt 0:00:21]} 36. Kg2 {[%emt 0:00:31]} Bf6 {[%emt 0:01:17] Inhibits Re5.} 37. Re8+ {[%emt 0:00:31]} Kf7 {[%emt 0:00:06]} 38. Ra8 {[%emt 0:00:04]} Rc7 {[%emt 0:01:39]} 39. a3 {[%emt 0:01:42]} Kg6 {[%emt 0:05:45]} 40. axb4 {[%emt 0:00:05]} Nxb4 {[%emt 0:00:10]} 41. b3 {[%emt 0:01:32]} h5 {[%emt 0:01:28]} 42. Rf4 {[%emt 0:01:12]} (42. Re8 $17 {keeps fighting.}) 42... Rc2+ $19 {[%emt 0:00:36]} 43. Rf2 {[%emt 0:00:18]} Rc3 {[%emt 0:01:06]} 44. Rf3 {[%emt 0:00:49]} Nd3 {[%emt 0:01:23]} 45. Kf1 {[%emt 0:00:02] Prevents Ne1.} Rc1+ {[%emt 0:00:29]} ({And not} 45... Rxb3 46. Rxa7 Rb1+ 47. Ke2) 46. Ke2 {[%emt 0:00:09]} Ne5 {[%emt 0:00:14]} 47. Re3 {[%emt 0:00:36]} Rc2+ {[%emt 0:00:38]} 48. Kf1 {[%emt 0:01:10]} Ra2 {[%emt 0:00:50]} 49. Re8 {[%emt 0:00:36]} Nc6 {[%emt 0:00:31]} 50. R8e4 {[%emt 0:00:14]} a5 {[%emt 0:01:00]} 51. Rc4 {[%emt 0:00:58]} Nd4 {[%emt 0:00:39]} (51... Ra1+ $19 52. Kf2 Nb4) 52. Rd3 $17 {[%emt 0:00:15]} Ra1+ {[%emt 0:00:14]} 53. Kf2 {[%emt 0:00:14]} Ra2+ {[%emt 0:00:03]} 54. Kf1 $1 {[%emt 0:00:16]} Nc2 {[%emt 0:01:06]} 55. Ra4 {[%emt 0:00:55]} Rxa4 {[%emt 0:00:51]} 56. bxa4 {[%emt 0:00:04]} Be7 {[%emt 0:00:27] Against Rd6+} ({Black should play} 56... Nd4 $17 {next ...Kf5 is good for Black.} 57. Kg2 Kf5) 57. Ke2 $1 $11 {[%emt 0:00:52]} Bb4 {[%emt 0:00:32]} 58. Rd5 $2 {[%emt 0:00:04]} (58. Rd1 $1 $11) 58... Ne1 $2 {[%emt 0:00:30]} ({Black should try} 58... Na3 $1 $19 {White must now prevent ...Nb1.} 59. Kd3 Nb1) 59. Rb5 {[%emt 0:01:27][%cal Ob5b4]} Nc2 {[%emt 0:00:08]} (59... h4 $11 60. gxh4 Nc2 61. Rg5+ Kf6) 60. Rd5 $17 {[%emt 0:00:13] White is now going downhill.} Na3 $1 {[%emt 0:00:38]} 61. Kd3 {[%emt 0:01:21] [#]} Nb1 $1 {[%emt 0:00:23]} 62. Kc4 {[%emt 0:00:39]} (62. g4 {might work better.}) 62... Nc3 $19 {[%emt 0:00:22]} 63. Re5 {[%emt 0:00:29]} Nxa4 {[%emt 0:00:13]} 64. h4 {[%emt 0:00:22] [#]} (64. Kd3 $142) 64... Nc5 $1 {[%emt 0:00:42]} 65. Rg5+ {[%emt 0:00:11] [#]} (65. g4 hxg4) 65... Kh6 $1 {[%emt 0:00:08]} 66. g4 {[%emt 0:00:36]} hxg4 {[%emt 0:00:10]} 67. Rxg4 {[%emt 0:00:03]} Nd7 {[%emt 0:01:06]} 68. Rg5 {[%emt 0:00:48] Inhibits Ne5+.} Nf8 {[%emt 0:00:49]} 69. Kb5 $2 {[%emt 0:00:59]} (69. Rg4) 69... Ng6 {[%emt 0:00:29]} 70. Rg4 {[%emt 0:00:03]} Ne7 {[%emt 0:00:23]} 71. Rf4 {[%emt 0:00:37] Prevents Nf5.} g6 {[%emt 0:00:33]} 72. Re4 {[%emt 0:00:42]} Nf5 {[%emt 0:00:19] ( -> ...Nd6+)} 73. Rg4 {[%emt 0:00:08]} Be1 {[%emt 0:00:16]} 74. Rg1 {[%emt 0:00:02]} Bd2 {[%emt 0:00:18]} 75. Rg2 {[%emt 0:00:13]} Bc3 {[%emt 0:00:16]} 76. Rg4 {[%emt 0:00:19]} Bb4 {[%emt 0:00:22] aiming for ...Be1.} 77. Ka4 {[%emt 0:00:18]} Nd6 {[%emt 0:01:19]} (77... Be7 $142 78. Kxa5 Bxh4) 78. Rg5 {[%emt 0:00:24]} Ne4 {[%emt 0:00:29]} 79. Rg4 {[%emt 0:00:15]} Nd2 {[%emt 0:00:21]} 80. Rg3 {[%emt 0:00:32]} Nc4 {[%emt 0:01:02]} 81. Rg5 {[%emt 0:00:54]} Ne3 {[%emt 0:00:29] Strongly threatening ...Be1.} 82. Rg3 {[%emt 0:00:27]} Bd2 {[%emt 0:00:24] And now ...Nf5 would win.} 83. Kb5 {[%emt 0:00:28]} Nf5 $2 {[%emt 0:00:42]} (83... Kh7 84. Ka4 Nf5) 84. Rg2 {[%emt 0:00:03]} Bc3 {[%emt 0:00:37]} 85. Rg4 {[%emt 0:00:17]} Ne3 {[%emt 0:00:31]} 86. Rg3 {[%emt 0:00:16]} Bd2 {[%emt 0:00:17]} 87. Ka4 $2 {[%emt 0:00:17]} (87. Rg5) 87... Nf5 {[%emt 0:00:35][%csl LRg3,LRh4] Black is clearly winning.} 88. Rg2 {[%emt 0:00:02]} Be1 {[%emt 0:00:14]} 89. Rg1 {[%emt 0:00:10]} Bf2 {[%emt 0:00:24]} 90. Rg2 {[%emt 0:00:36]} Bb6 {[%emt 0:00:12]} 91. Rb2 {[%emt 0:00:38]} Bd8 {[%emt 0:00:19]} 92. Rb8 {[%emt 0:00:03]} Bxh4 {[%emt 0:00:56]} 93. Kxa5 {[%emt 0:00:04]} g5 {[%emt 0:00:54]} 94. Kb5 {[%emt 0:02:23]} g4 {[%emt 0:00:30]} 95. Kc4 {[%emt 0:00:53]} g3 {[%emt 0:00:32]} 96. Rg8 {[%emt 0:01:50]} g2 {[%emt 0:00:36]} 97. Rxg2 {[%emt 0:01:05]} Ne3+ {[%emt 0:00:02] Weighted Error Value: White=0.14 (very precise) /Black=0.17 (very precise)} 0-1

[Event "1000GM 0004 IM Norm 2022"]
[Site "Saint Louis"]
[Date "2022.09.22"]
[Round "2.3"]
[White "Yim, Sung Ho"]
[Black "Eckert, Doug"]
[Result "1-0"]
[ECO "D11"]
[WhiteElo "2207"]
[BlackElo "2165"]
[Annotator "TA"]
[PlyCount "93"]
[EventDate "2022.09.21"]
[EventType "tourn"]
[EventCountry "USA"]
[SourceTitle "playchess.com"]
[Source "ChessBase"]
[SourceQuality "1"]
[TimeControl "5400+30"]

{[%evp 9,93,11,22,14,21,29,39,31,30,4,-1,2,12,-1,-1,0,0,-12,35,-15,22,0,34,-23,-37,-30,8,0,16,17,21,18,49,0,26,27,40,38,27,27,35,42,96,96,268,272,262,246,255,265,289,288,275,274,257,250,318,304,291,226,341,339,430,278,305,266,438,436,992,955,784,558,29987,444,29974,29974,29983,29984,29984,29985,29991,29992,29993,29994,29994,29993]} 1. Nf3 {[%emt 0:00:04]} d5 {[%emt 0:01:00]} 2. d4 {[%emt 0:00:07]} Nf6 {[%emt 0:00:13]} 3. c4 {[%emt 0:00:06]} c6 {[%emt 0:00:13]} 4. e3 {[%emt 0:00:49]} Bg4 {[%emt 0:00:14]} 5. h3 {[%emt 0:00:57]} Bh5 {[%emt 0:00:06]} 6. g4 {[%emt 0:01:10] D11: Slav Defence: 3 Nf3 sidelines and 3...Nf6 4 e3 Bg4.} Bg6 {[%emt 0:00:07]} 7. Ne5 {[%emt 0:00:14]} Bxb1 {[%emt 0:00:36]} 8. Rxb1 {[%emt 0:00:11] White is slightly better.} e6 {[%emt 0:00:27] [#]} 9. a3 $146 {[%emt 0:04:51] Inhibits Bb4+.} ({Predecessor:} 9. Bg2 Qa5+ 10. Bd2 Bb4 11. Bxb4 Qxb4+ 12. Qd2 Qe7 13. O-O Nbd7 14. Nxd7 Nxd7 15. f4 dxc4 {½-½ (21) Abel,D (2465)-Smeets,J (2602) Germany 2019}) 9... Nbd7 {[%emt 0:03:42]} 10. Nxd7 {[%emt 0:06:59]} Nxd7 {[%emt 0:00:49]} 11. h4 {[%emt 0:04:05]} Be7 {[%emt 0:03:27]} 12. h5 {[%emt 0:10:57]} h6 {[%emt 0:03:25]} 13. Bd3 {[%emt 0:04:10]} Qc7 {[%emt 0:03:54]} (13... dxc4 $11 14. Bxc4 O-O) 14. Qe2 {[%emt 0:09:56]} (14. cxd5 $14 exd5 15. Qf3) 14... Nf6 {[%emt 0:08:35]} 15. Bd2 {[%emt 0:03:21]} Ne4 {[%emt 0:04:47]} 16. Bxe4 {[%emt 0:01:11]} (16. cxd5 $14 Nxd2 17. Qxd2) 16... dxe4 $11 {[%emt 0:00:06]} 17. Bc3 {[%emt 0:00:41]} O-O-O {[%emt 0:06:15]} 18. Rd1 {[%emt 0:01:32]} f5 {[%emt 0:02:07]} 19. Kd2 {[%emt 0:04:43]} Bf6 {[%emt 0:04:14]} 20. Kc2 {[%emt 0:01:50]} c5 {[%emt 0:06:19]} 21. b3 {[%emt 0:06:47]} (21. gxf5 $14 cxd4 22. Bxd4 (22. exd4 exf5 23. Rh3 f4 $11)) 21... cxd4 {[%emt 0:10:44]} 22. exd4 {[%emt 0:01:58][%cal Be3d4,Bd4e5,Be5e6][%mdl 32]} Kb8 {[%emt 0:00:36][%cal Ob7b5]} 23. f3 {[%emt 0:03:41]} exf3 {[%emt 0:05:43]} 24. Qxf3 {[%emt 0:02:19]} fxg4 $1 {[%emt 0:06:21]} 25. Qxg4 {[%emt 0:00:06]} Rhe8 {[%emt 0:05:12]} ({Black should try} 25... b5 $1 $14) 26. Rhe1 $16 {[%emt 0:00:37]} e5 $2 {[%emt 0:07:10] This move loses the game for Black.} (26... Re7 $16) 27. dxe5 $18 {[%emt 0:04:01]} Rxd1 {[%emt 0:00:06]} 28. Qxd1 {[%emt 0:00:15]} ({Resist} 28. Rxd1 $6 Rxe5 29. Bxe5 Qxe5 $16) 28... Be7 {[%emt 0:01:24]} (28... Bxe5 $2 29. Bxe5 Rxe5 30. Rxe5 $18) 29. a4 {[%emt 0:03:22]} Rd8 {[%emt 0:02:49]} 30. Qg4 {[%emt 0:01:06]} Bg5 {[%emt 0:02:16]} 31. e6 {[%emt 0:06:17] [#] Strongly threatening Be5.} Qe7 {[%emt 0:00:05]} (31... Qd6 $2 32. Be5 Qxe5 33. Rxe5 $18) 32. Re2 {[%emt 0:05:36]} a6 {[%emt 0:01:16]} 33. Qf5 {[%emt 0:00:39] Active counter play!} Ka8 {[%emt 0:02:16]} 34. c5 {[%emt 0:03:52]} Rc8 {[%emt 0:04:06]} (34... Rf8 {was worth a try.} 35. Qd5 Rd8) 35. Bd4 {[%emt 0:03:07]} Bf6 {[%emt 0:01:34]} 36. Bf2 {[%emt 0:00:42]} Qc7 {[%emt 0:03:22]} 37. b4 {[%emt 0:02:48][%cal Bb3b4,Bb4b5][%mdl 32]} Qc6 $2 {[%emt 0:01:26]} (37... Be7 38. Qe4 Qh2) 38. Kb3 {[%emt 0:01:24] [#] e7 is the strong threat.} Qh1 {[%emt 0:00:57]} (38... Qc7 $142 39. Qd5 Rd8) 39. Re1 {[%emt 0:00:00]} Qh2 {[%emt 0:01:01]} 40. b5 {[%emt 0:00:56] e7 would kill now.} a5 {[%emt 0:00:43]} 41. Re2 {[%emt 0:01:48]} (41. e7 $142 Re8 42. Qd7 Qb8 43. c6 Rxe7 44. Rxe7 Bxe7 45. c7 Qg8+ 46. Kc3) 41... Qc7 {[%emt 0:00:40]} (41... Qh1 $18 42. Re1 Qh2) 42. Rd2 {[%emt 0:01:07] White mates.} Rd8 {[%emt 0:00:19]} 43. Rd7 {[%emt 0:00:35]} Rxd7 {[%emt 0:00:30]} 44. exd7 {[%emt 0:00:01]} Qd8 {[%emt 0:00:18]} 45. Qe6 {[%emt 0:00:17]} Qc7 {[%emt 0:00:31]} 46. Qe8+ {[%emt 0:00:30]} Bd8 {[%emt 0:00:25]} 47. Bh4 {[%emt 0:00:46] Weighted Error Value: White=0.32/Black=0.58} 1-0

[Event "1000GM 0004 IM Norm 2022"]
[Site "Saint Louis"]
[Date "2022.09.22"]
[Round "2.4"]
[White "Wang, Tianqi"]
[Black "Antova, Gabriela"]
[Result "1-0"]
[ECO "B23"]
[WhiteElo "2424"]
[BlackElo "2305"]
[Annotator "TA"]
[PlyCount "71"]
[EventDate "2022.09.21"]
[EventType "tourn"]
[EventCountry "USA"]
[SourceTitle "playchess.com"]
[Source "ChessBase"]
[SourceQuality "1"]
[TimeControl "5400+30"]

{[%evp 9,71,12,25,-14,-12,-13,14,5,25,18,71,65,71,23,25,23,44,43,37,31,27,33,37,37,37,31,43,22,21,17,24,26,25,26,16,27,20,19,12,3,19,12,41,29,66,55,59,47,97,77,69,65,70,50,135,116,169,83,93,27,34,19,482,456]} 1. e4 {[%emt 0:10:56]} c5 {[%emt 0:00:11]} 2. Nc3 {[%emt 0:00:16]} Nc6 {[%emt 0:02:59]} 3. Bb5 {[%emt 0:04:25]} Nd4 {[%emt 0:00:19]} 4. Nf3 {[%emt 0:00:05]} a6 {[%emt 0:00:19]} 5. Bd3 {[%emt 0:00:12]} Nc6 {[%emt 0:07:46]} 6. b3 {[%emt 0:00:25] B23: Closed Sicilian: Lines without g3.} d6 {[%emt 0:02:24]} 7. O-O {[%emt 0:00:42] [#]} e5 $146 {[%emt 0:07:52]} ({Predecessor:} 7... g6 8. Bb2 Bg7 9. h3 e6 10. Na4 e5 11. Nc3 Nge7 12. a4 O-O 13. Bc4 h6 {½-½ (76) Andreikin,D (2719)-Carlsen,M (2835) St Petersburg 2018}) 8. Re1 {[%emt 0:04:55] The position is equal.} Nge7 {[%emt 0:02:18]} 9. Nd5 {[%emt 0:06:49]} Ng6 {[%emt 0:20:53]} (9... Be6 $11 {keeps the balance.}) 10. c3 {[%emt 0:01:18]} Be7 {[%emt 0:01:45]} 11. Bf1 {[%emt 0:00:22] White has more active pieces. The black rooks are badly placed.} (11. Be2 $16) 11... O-O $11 {[%emt 0:02:33]} 12. d3 {[%emt 0:15:24]} Nh4 {[%emt 0:12:24]} 13. Nd2 {[%emt 0:06:37]} Bg5 {[%emt 0:08:02]} 14. g3 {[%emt 0:00:34]} Ng6 {[%emt 0:02:01]} 15. Bg2 {[%emt 0:05:18]} Nce7 {[%emt 0:03:53]} 16. Ne3 {[%emt 0:00:30]} Bxe3 {[%emt 0:02:29]} 17. Rxe3 {[%emt 0:01:20]} d5 {[%emt 0:06:34]} 18. Re1 {[%emt 0:00:14]} d4 {[%emt 0:00:43]} 19. cxd4 {[%emt 0:00:34]} Qxd4 {[%emt 0:01:01]} 20. Ba3 {[%emt 0:00:24]} Be6 {[%emt 0:02:41]} 21. Rc1 {[%emt 0:07:19][%cal Ba1c1,Bc1c4,Bc4b4,Bb4b3][%mdl 32] Black must now prevent Nf3.} b6 {[%emt 0:00:23]} 22. Nc4 {[%emt 0:15:34]} Bxc4 {[%emt 0:01:41]} 23. Rxc4 {[%emt 0:00:06]} Qd7 {[%emt 0:00:10]} 24. b4 {[%emt 0:05:23]} cxb4 {[%emt 0:00:09]} 25. Rxb4 {[%emt 0:00:04]} b5 {[%emt 0:00:20]} 26. d4 {[%emt 0:01:17]} a5 {[%emt 0:02:45]} 27. Rb3 {[%emt 0:00:57]} b4 {[%emt 0:05:37]} 28. Bb2 {[%emt 0:00:39]} Rfd8 {[%emt 0:01:56]} (28... Nc6 $14) 29. Rd3 {[%emt 0:00:38]} Nf8 {[%emt 0:01:08]} 30. d5 {[%emt 0:01:26]} f6 {[%emt 0:00:17]} 31. f4 {[%emt 0:02:01]} Nfg6 {[%emt 0:00:52]} (31... Neg6 $14) 32. Rf1 {[%emt 0:00:08]} Rac8 {[%emt 0:00:34]} (32... Kh8 $16 {was called for.}) 33. Kh1 {[%emt 0:04:17]} (33. h4 $18 {and White stays clearly on top.}) 33... Qd6 {[%emt 0:00:45][%cal Re5f4]} 34. Bc1 {[%emt 0:02:20]} (34. Bh3 $16) 34... Rc4 {[%emt 0:00:31]} 35. Bd2 {[%emt 0:00:24]} Nc6 $2 {[%emt 0:01:10][%mdl 8192] [#]} (35... Nc8 $11 {and Black has nothing to worry.}) 36. Qb3 {[%emt 0:00:13] Weighted Error Value: White=0.14 (very precise) /Black=0.35} 1-0